fUST/lending_fUST_20240726
["ID","MTS","AMOUNT","RATE_DAILY","PERIOD"]
[333219343,1721950330403,-164.37970887,9.999e-05,2]
[333219344,1721950331570,-11.06796832,9.999e-05,2]
[333219345,1721950331593,-164.37970887,9.999e-05,2]
[333219346,1721950333189,-357.10685373,9.999e-05,2]
[333219347,1721950333210,-164.37970887,9.999e-05,2]
[333219348,1721950336158,-69.07237473,9.999e-05,2]
[333219349,1721950336182,-85.70320069,9.999e-05,2]
[333219350,1721950336728,-233.4520836,9.999e-05,2]
[333219354,1721950381069,300.0,9.998e-05,2]
[333219355,1721950382874,300.0,9.998e-05,2]
[333219356,1721950383086,-22.33464469,9.999e-05,2]
[333219357,1721950383112,-251.03871762,9.999e-05,2]
[333219358,1721950385212,-412.40872961,9.999e-05,2]
[333219360,1721950388291,-309.48934567,9.999e-05,2]
[333219361,1721950397002,-495.79058774,9.999e-05,2]
[333219362,1721950397589,-159.9761619,9.999e-05,2]
[333219363,1721950397612,-127.45060364,9.999e-05,2]
[333219366,1721950452788,8450.3020671,9.9e-05,2]
[333219367,1721950462043,10000.0,7.25e-05,2]
[333219368,1721950480718,5678.62,7.25e-05,2]
[333219369,1721950508203,7185.0,7.25e-05,2]
[333219370,1721950694812,305.00020948,7.25e-05,2]
[333219390,1721951432512,-300.0,9.282e-05,2]
[333219391,1721951432523,-300.0,9.282e-05,2]
[333219392,1721951432534,-600.75275,9.283e-05,2]
[333219410,1721951438053,-24299.24725,9.283e-05,2]
[333219411,1721951438062,-350.0,9.705e-05,2]
[333219412,1721951438073,-567.88989652,9.999e-05,2]
[333219413,1721951438082,-319.34367752,9.999e-05,2]
[333219414,1721951438095,-413.48920953,9.999e-05,2]
[333219415,1721951438104,-404.26765741,9.999e-05,2]
[333219416,1721951438115,-161.21716942,9.999e-05,2]
[333219417,1721951438124,-307.43329446,9.999e-05,2]
[333219418,1721951438134,-156.24305338,9.999e-05,2]
[333219419,1721951438143,-175.65331378,9.999e-05,2]
[333219420,1721951438153,-518.96291688,9.999e-05,2]
[333219421,1721951438163,-182.50480094,9.999e-05,2]
[333219422,1721951438172,-209.61899477,9.999e-05,2]
[333219423,1721951438181,-248.79133132,9.999e-05,2]
[333219424,1721951438192,-206.23361349,9.999e-05,2]
[333219425,1721951438202,-208.41271609,9.999e-05,2]
[333219426,1721951438213,-194.8378102,9.999e-05,2]
[333219427,1721951438223,-335.02405118,9.999e-05,2]
[333219428,1721951438232,-309.52024362,9.999e-05,2]
[333219429,1721951438241,-188.04294313,9.999e-05,2]
[333219430,1721951438251,-180.95215819,9.999e-05,2]
[333219431,1721951438260,-350.77118343,9.999e-05,2]
[333219432,1721951438270,-941.81566876,9.999e-05,2]
[333219433,1721951438279,-154.79103211,9.999e-05,2]
[333219434,1721951438289,-154.77557542,0.0001,2]
[333219435,1721951438299,-309.48934567,0.0001,2]
[333219436,1721951438311,-287.42676554,0.0001,2]
[333219437,1721951438323,-359.4112535,0.00010181,2]
[333219438,1721951438335,-420.0,0.0001021,2]
[333219439,1721951438346,-250.0,0.00010527,2]
[333219440,1721951438358,-250.0,0.00010556,2]
[333219441,1721951438368,-250.0,0.00010585,2]
[333219442,1721951438379,-250.0,0.00010614,2]
[333219443,1721951438388,-250.0,0.00010643,2]
[333219444,1721951438397,-250.0,0.00010672,2]
[333219445,1721951438407,-250.0,0.00010701,2]
[333219446,1721951438415,-250.0,0.0001073,2]
[333219447,1721951438425,-250.0,0.00010758,2]
[333219448,1721951438434,-250.0,0.00010787,2]
[333219449,1721951438443,-250.0,0.00010816,2]
[333219450,1721951438452,-250.0,0.00010845,2]
[333219451,1721951438461,-250.0,0.00010874,2]
[333219452,1721951438470,-250.0,0.00010903,2]
[333219453,1721951438480,-250.0,0.00010932,2]
[333219454,1721951438489,-391.4690556,0.00010959,2]
[333219455,1721951438498,-557.33,0.00010959,2]
[333219456,1721951438507,-464.44,0.00010959,2]
[333219457,1721951438517,-387.03,0.00010959,2]
[333219458,1721951438528,-322.53,0.00010959,2]
[333219459,1721951438539,-268.77,0.00010959,2]
[333219460,1721951438550,-223.98,0.00010959,2]
[333219461,1721951438559,-186.65,0.00010959,2]
[333219462,1721951438570,-155.54,0.00010959,2]
[333219463,1721951438580,-777.71,0.00010959,2]
[333219464,1721951438592,-250.0,0.00010961,2]
[333219465,1721951438603,-250.0,0.00010989,2]
[333219466,1721951438614,-250.0,0.00011018,2]
[333219467,1721951438625,-250.0,0.00011047,2]
[333219468,1721951438634,-250.0,0.00011076,2]
[333219469,1721951438643,-587.0,0.00011231,2]
[333219470,1721951438654,-776.0,0.00012354,2]
[333219471,1721951438664,-2595.48260548,0.000129,2]
[333219472,1721951438675,-2595.48260546,0.000129,2]
[333219473,1721951438686,-200.0,0.00013425,2]
[333219474,1721951438696,-168.6326348,0.00013598,2]
[333219475,1721951438706,-2000.0,0.00013599,2]
[333219476,1721951438717,-45047.09506789,0.00013688,2]
[333219477,1721951438745,-247069.03560711,0.00013688,2]
[333219478,1721951438757,-572.9,0.00013698,2]
[333219479,1721951438768,-847.16,0.00013698,2]
[333219480,1721951438779,-500.0,0.00013698,2]
[333219481,1721951438791,-500.0,0.00013698,2]
[333219482,1721951438802,-500.0,0.00013698,2]
[333219483,1721951438813,-500.0,0.00013698,2]
[333219484,1721951438823,-650.35,0.00013698,2]
[333219485,1721951438836,-500.0,0.00013698,2]
[333219486,1721951438847,-500.0,0.00013698,2]
[333219487,1721951438859,-704.73,0.00013698,2]
[333219488,1721951438870,-500.0,0.00013698,2]
[333219489,1721951438884,-500.0,0.00013698,2]
[333219490,1721951438895,-578.6,0.00013698,2]
[333219491,1721951438906,-500.0,0.00013698,2]
[333219492,1721951438915,-500.0,0.00013698,2]
[333219493,1721951438928,-516.04,0.00013698,2]
[333219494,1721951438939,-500.0,0.00013698,2]
[333219495,1721951438954,-500.0,0.00013698,2]
[333219496,1721951438967,-500.0,0.00013698,2]
[333219497,1721951438981,-500.0,0.00013698,2]
[333219498,1721951438994,-500.0,0.00013698,2]
[333219499,1721951439006,-461.81753424,0.00013698,2]
[333219500,1721951439018,-500.0,0.00013698,2]
[333219501,1721951439028,-500.0,0.00013698,2]
[333219502,1721951439038,-500.0,0.00013698,2]
[333219503,1721951439049,-810.66,0.00013698,2]
[333219504,1721951439061,-359.12213741,0.00013698,2]
[333219505,1721951439072,-500.0,0.00013698,2]
[333219506,1721951439084,-500.0,0.00013698,2]
[333219507,1721951439095,-988.25,0.00013698,2]
[333219508,1721951439107,-500.0,0.00013698,2]
[333219509,1721951439119,-500.0,0.00013698,2]
[333219510,1721951439132,-500.0,0.00013698,2]
[333219511,1721951439144,-264.24634082,0.00013698,2]
[333219512,1721951439159,-500.0,0.00013698,2]
[333219513,1721951439170,-500.0,0.00013698,2]
[333219514,1721951439182,-500.0,0.00013698,2]
[333219515,1721951439194,-500.0,0.00013698,2]
[333219516,1721951439206,-803.72,0.00013698,2]
[333219517,1721951439217,-500.0,0.00013698,2]
[333219518,1721951439230,-500.0,0.00013698,2]
[333219519,1721951439242,-500.0,0.00013698,2]
[333219520,1721951439253,-500.0,0.00013698,2]
[333219521,1721951439267,-500.0,0.00013698,2]
[333219522,1721951439280,-500.0,0.00013698,2]
[333219523,1721951439293,-500.0,0.00013698,2]
[333219524,1721951439306,-500.0,0.00013698,2]
[333219525,1721951439318,-617.81,0.00013698,2]
[333219526,1721951439329,-791.8,0.00013698,2]
[333219527,1721951439341,-678.26,0.00013698,2]
[333219528,1721951439352,-500.0,0.00013698,2]
[333219529,1721951439362,-518.81,0.00013698,2]
[333219530,1721951439372,-500.0,0.00013698,2]
[333219531,1721951439384,-506.22981944,0.00013698,2]
[333219532,1721951439396,-518.6958012,0.00013698,2]
[333219533,1721951439407,-500.0,0.00013698,2]
[333219534,1721951439419,-512.62295558,0.00013698,2]
[333219535,1721951439430,-500.0,0.00013698,2]
[333219536,1721951439442,-500.0,0.00013698,2]
[333219537,1721951439453,-1235.18,0.00013698,2]
[333219538,1721951439466,-815.11,0.00013698,2]
[333219539,1721951439478,-500.0,0.00013698,2]
[333219540,1721951439491,-500.0,0.00013698,2]
[333219541,1721951439502,-500.0,0.00013698,2]
[333219542,1721951439514,-500.0,0.00013698,2]
[333219544,1721951439526,-575.74,0.00013698,2]
[333219545,1721951439540,-522.53197781,0.00013698,2]
[333219546,1721951439555,-258.05509899,0.00013698,2]
[333219547,1721951439568,-500.0,0.00013698,2]
[333219548,1721951439579,-500.0,0.00013698,2]
[333219549,1721951439590,-867.24,0.00013698,2]
[333219550,1721951439601,-500.0,0.00013698,2]
[333219551,1721951439611,-500.0,0.00013698,2]
[333219552,1721951439621,-500.0,0.00013698,2]
[333219553,1721951439634,-500.0,0.00013698,2]
[333219554,1721951439646,-500.0,0.00013698,2]
[333219555,1721951439660,-500.0,0.00013698,2]
[333219556,1721951439671,-567.23,0.00013698,2]
[333219557,1721951439683,-500.0,0.00013698,2]
[333219558,1721951439694,-500.0,0.00013698,2]
[333219560,1721951439704,-386.88779555,0.00013698,2]
[333219562,1721951439714,-500.0,0.00013698,2]
[333219564,1721951439728,-500.0,0.00013698,2]
[333219566,1721951439739,-641.11,0.00013698,2]
[333219567,1721951439749,-500.0,0.00013698,2]
[333219568,1721951439763,-1005.92,0.00013698,2]
[333219569,1721951439776,-500.0,0.00013698,2]
[333219570,1721951439787,-500.0,0.00013698,2]
[333219572,1721951439798,-833.23,0.00013698,2]
[333219574,1721951439808,-500.0,0.00013698,2]
[333219576,1721951439818,-500.0,0.00013698,2]
[333219578,1721951439828,-500.0,0.00013698,2]
[333219580,1721951439839,-500.0,0.00013698,2]
[333219582,1721951439850,-1735.66,0.00013698,2]
[333219584,1721951439861,-500.0,0.00013698,2]
[333219586,1721951439871,-500.0,0.00013698,2]
[333219589,1721951439887,-500.0,0.00013698,2]
[333219591,1721951439899,-500.0,0.00013698,2]
[333219593,1721951439910,-500.0,0.00013698,2]
[333219595,1721951439922,-513.67,0.00013698,2]
[333219598,1721951439933,-522.63,0.00013698,2]
[333219600,1721951439944,-1144.41,0.00013698,2]
[333219602,1721951439955,-500.0,0.00013698,2]
[333219604,1721951439966,-502.05,0.00013698,2]
[333219606,1721951439977,-500.0,0.00013698,2]
[333219608,1721951439988,-739.94,0.00013698,2]
[333219611,1721951439999,-500.0,0.00013698,2]
[333219613,1721951440011,-844.57,0.00013698,2]
[333219614,1721951440021,-503.56,0.00013698,2]
[333219615,1721951440032,-500.0,0.00013698,2]
[333219616,1721951440044,-500.0,0.00013698,2]
[333219617,1721951440055,-500.0,0.00013698,2]
[333219618,1721951440066,-500.0,0.00013698,2]
[333219619,1721951440077,-500.0,0.00013698,2]
[333219620,1721951440088,-500.0,0.00013698,2]
[333219621,1721951440099,-500.0,0.00013698,2]
[333219622,1721951440111,-1024.46,0.00013698,2]
[333219623,1721951440123,-500.0,0.00013698,2]
[333219624,1721951440134,-765.22,0.00013698,2]
[333219625,1721951440145,-500.0,0.00013698,2]
[333219626,1721951440157,-500.0,0.00013698,2]
[333219627,1721951440168,-730.91,0.00013698,2]
[333219628,1721951440179,-500.0,0.00013698,2]
[333219629,1721951440191,-500.0,0.00013698,2]
[333219630,1721951440201,-1043.44,0.00013698,2]
[333219631,1721951440212,-500.0,0.00013698,2]
[333219632,1721951440224,-500.0,0.00013698,2]
[333219634,1721951440234,-500.0,0.00013698,2]
[333219636,1721951440245,-504.16219307,0.00013698,2]
[333219638,1721951440257,-500.0,0.00013698,2]
[333219639,1721951440268,-500.0,0.00013698,2]
[333219640,1721951440279,-779.25,0.00013698,2]
[333219641,1721951440290,-500.0,0.00013698,2]
[333219643,1721951440301,-500.0,0.00013698,2]
[333219645,1721951440312,-500.0,0.00013698,2]
[333219647,1721951440323,-949.89,0.00013698,2]
[333219649,1721951440335,-500.0,0.00013698,2]
[333219651,1721951440347,-500.0,0.00013698,2]
[333219654,1721951440359,-980.8,0.00013698,2]
[333219655,1721951440371,-500.0,0.00013698,2]
[333219656,1721951440383,-856.66,0.00013698,2]
[333219657,1721951440395,-3348.86,0.00013698,2]
[333219658,1721951440406,-500.0,0.00013698,2]
[333219659,1721951440416,-2210.28,0.00013698,2]
[333219660,1721951440427,-665.13,0.00013698,2]
[333219661,1721951440440,-1158.17,0.00013698,2]
[333219662,1721951440451,-1702.32,0.00013698,2]
[333219663,1721951440463,-500.0,0.00013698,2]
[333219664,1721951440474,-778.46,0.00013698,2]
[333219665,1721951440487,-1081.15,0.00013698,2]
[333219666,1721951440498,-2003.25,0.00013698,2]
[333219667,1721951440509,-836.95,0.00013698,2]
[333219668,1721951440520,-1101.69,0.00013698,2]
[333219669,1721951440532,-500.0,0.00013698,2]
[333219670,1721951440543,-662.66,0.00013698,2]
[333219671,1721951440554,-1167.96,0.00013698,2]
[333219672,1721951440565,-509.6,0.00013698,2]
[333219673,1721951440575,-1306.29,0.00013698,2]
[333219674,1721951440586,-613.78,0.00013698,2]
[333219675,1721951440597,-717.82,0.00013698,2]
[333219676,1721951440608,-4921.26,0.00013698,2]
[333219677,1721951440618,-500.0,0.00013698,2]
[333219678,1721951440630,-802.77,0.00013698,2]
[333219679,1721951440641,-500.0,0.00013698,2]
[333219680,1721951440652,-980.21,0.00013698,2]
[333219681,1721951440663,-534.15,0.00013698,2]
[333219682,1721951440674,-500.0,0.00013698,2]
[333219683,1721951440686,-500.0,0.00013698,2]
[333219684,1721951440697,-1486.1,0.00013698,2]
[333219685,1721951440708,-559.36,0.00013698,2]
[333219686,1721951440719,-500.0,0.00013698,2]
[333219687,1721951440730,-500.0,0.00013698,2]
[333219688,1721951440741,-500.0,0.00013698,2]
[333219689,1721951440752,-500.0,0.00013698,2]
[333219690,1721951440763,-1146.62,0.00013698,2]
[333219691,1721951440774,-500.0,0.00013698,2]
[333219692,1721951440784,-1281.33,0.00013698,2]
[333219693,1721951440795,-1765.09,0.00013698,2]
[333219694,1721951440807,-1765.09,0.00013698,2]
[333219695,1721951440817,-1765.09,0.00013698,2]
[333219696,1721951440828,-1765.09,0.00013698,2]
[333219697,1721951440839,-1765.09,0.00013698,2]
[333219698,1721951440851,-1765.09,0.00013698,2]
[333219699,1721951440862,-1765.09,0.00013698,2]
[333219700,1721951440872,-1765.09,0.00013698,2]
[333219701,1721951440887,-1765.09,0.00013698,2]
[333219702,1721951440897,-698.15,0.00013698,2]
[333219703,1721951440908,-628.13,0.00013698,2]
[333219704,1721951440921,-665.27,0.00013698,2]
[333219705,1721951440931,-1181.92,0.00013698,2]
[333219706,1721951440942,-500.0,0.00013698,2]
[333219707,1721951440954,-500.0,0.00013698,2]
[333219708,1721951440964,-500.0,0.00013698,2]
[333219709,1721951440978,-682.27,0.00013698,2]
[333219710,1721951440989,-1933.59,0.00013698,2]
[333219711,1721951441000,-500.0,0.00013698,2]
[333219712,1721951441012,-500.0,0.00013698,2]
[333219713,1721951441023,-561.83,0.00013698,2]
[333219714,1721951441033,-500.0,0.00013698,2]
[333219715,1721951441044,-500.0,0.00013698,2]
[333219716,1721951441055,-500.0,0.00013698,2]
[333219717,1721951441067,-500.0,0.00013698,2]
[333219718,1721951441234,-500.0,0.00013698,2]
[333219719,1721951441293,-7202.94,0.00013698,2]
[333219720,1721951441307,-1364.36,0.00013698,2]
[333219721,1721951441318,-1150.13,0.00013698,2]
[333219722,1721951441328,-500.0,0.00013698,2]
[333219723,1721951441339,-603.97,0.00013698,2]
[333219724,1721951441350,-500.0,0.00013698,2]
[333219725,1721951441361,-500.0,0.00013698,2]
[333219726,1721951441373,-500.0,0.00013698,2]
[333219727,1721951441384,-500.0,0.00013698,2]
[333219728,1721951441393,-500.0,0.00013698,2]
[333219729,1721951441404,-1203.13,0.00013698,2]
[333219730,1721951441416,-757.91,0.00013698,2]
[333219731,1721951441426,-5993.65,0.00013698,2]
[333219732,1721951441437,-3064.3,0.00013698,2]
[333219733,1721951441447,-500.0,0.00013698,2]
[333219734,1721951441457,-500.0,0.00013698,2]
[333219735,1721951441467,-1356.49,0.00013698,2]
[333219736,1721951441477,-500.0,0.00013698,2]
[333219737,1721951441487,-500.0,0.00013698,2]
[333219738,1721951441497,-587.04,0.00013698,2]
[333219739,1721951441506,-500.0,0.00013698,2]
[333219740,1721951441515,-500.0,0.00013698,2]
[333219741,1721951441525,-665.29271323,0.00013698,2]
[333219742,1721951441535,-665.29271323,0.00013698,2]
[333219743,1721951441544,-665.29271323,0.00013698,2]
[333219744,1721951441554,-665.29271323,0.00013698,2]
[333219745,1721951441564,-500.0,0.00013698,2]
[333219746,1721951441574,-665.29271323,0.00013698,2]
[333219747,1721951441585,-665.29271323,0.00013698,2]
[333219748,1721951441594,-461.47561502,0.00013698,2]
[333219749,1721951441604,-665.29271323,0.00013698,2]
[333219750,1721951441614,-665.29271323,0.00013698,2]
[333219751,1721951441623,-665.29271323,0.00013698,2]
[333219752,1721951441633,-665.29271323,0.00013698,2]
[333219753,1721951441643,-665.29271323,0.00013698,2]
[333219754,1721951441653,-665.29271323,0.00013698,2]
[333219755,1721951441663,-665.29271323,0.00013698,2]
[333219756,1721951441673,-665.29271323,0.00013698,2]
[333219757,1721951441683,-665.29271323,0.00013698,2]
[333219758,1721951441692,-665.29271323,0.00013698,2]
[333219759,1721951441701,-665.29271323,0.00013698,2]
[333219760,1721951441711,-230.04448136,0.00013698,2]
[333219761,1721951441720,-665.29271323,0.00013698,2]
[333219762,1721951441730,-665.29271323,0.00013698,2]
[333219763,1721951441740,-665.29271323,0.00013698,2]
[333219764,1721951441750,-665.29271323,0.00013698,2]
[333219765,1721951441759,-665.29271323,0.00013698,2]
[333219766,1721951441769,-500.0,0.00013698,2]
[333219767,1721951441778,-500.0,0.00013698,2]
[333219768,1721951441787,-1273.76,0.00013698,2]
[333219769,1721951441797,-658.3,0.00013698,2]
[333219770,1721951441807,-647.33821386,0.00013698,2]
[333219771,1721951441816,-3000.0,0.00013699,2]
[333219772,1721951441825,-406.76703,0.00013699,2]
[333219773,1721951441835,-97372.0435584,0.00013942,2]
[333219774,1721951441845,-1765.09,0.00013951,2]
[333219775,1721951441855,-1765.09,0.00013951,2]
[333219776,1721951441865,-1765.09,0.00013951,2]
[333219777,1721951441874,-1765.09,0.00013951,2]
[333219778,1721951441887,-1765.09,0.00013951,2]
[333219779,1721951441897,-151.0,0.00013952,2]
[333219780,1721951441906,-151.0,0.00013952,2]
[333219781,1721951441915,-151.0,0.00013952,2]
[333219782,1721951441924,-151.0,0.00013952,2]
[333219783,1721951441934,-151.0,0.00013952,2]
[333219784,1721951441944,-271.148204,0.00013952,2]
[333219785,1721951441954,-1765.09,0.00013961,2]
[333219786,1721951441964,-1765.09,0.00013961,2]
[333219787,1721951441974,-1765.09,0.00013961,2]
[333219788,1721951441984,-1765.09,0.00013961,2]
[333219789,1721951441994,-1765.09,0.00013961,2]
[333219790,1721951442004,-151.0,0.00013962,2]
[333219791,1721951442014,-151.0,0.00013962,2]
[333219792,1721951442023,-151.0,0.00013962,2]
[333219793,1721951442036,-1765.09,0.0001397,2]
[333219794,1721951442045,-1765.09,0.0001397,2]
[333219795,1721951442055,-1765.09,0.0001397,2]
[333219796,1721951442066,-1765.09,0.0001397,2]
[333219797,1721951442076,-1765.25810102,0.0001397,2]
[333219798,1721951442086,-572.9,0.00013972,2]
[333219799,1721951442096,-847.16,0.00013972,2]
[333219800,1721951442106,-500.0,0.00013972,2]
[333219801,1721951442116,-500.0,0.00013972,2]
[333219802,1721951442126,-500.0,0.00013972,2]
[333219803,1721951442136,-500.0,0.00013972,2]
[333219804,1721951442147,-650.35,0.00013972,2]
[333219805,1721951442157,-500.0,0.00013972,2]
[333219806,1721951442166,-500.0,0.00013972,2]
[333219807,1721951442176,-704.73,0.00013972,2]
[333219808,1721951442186,-500.0,0.00013972,2]
[333219809,1721951442195,-500.0,0.00013972,2]
[333219810,1721951442205,-578.6,0.00013972,2]
[333219811,1721951442215,-500.0,0.00013972,2]
[333219812,1721951442224,-500.0,0.00013972,2]
[333219813,1721951442234,-516.04,0.00013972,2]
[333219814,1721951442244,-500.0,0.00013972,2]
[333219815,1721951442254,-500.0,0.00013972,2]
[333219816,1721951442263,-500.0,0.00013972,2]
[333219817,1721951442273,-500.0,0.00013972,2]
[333219818,1721951442282,-500.0,0.00013972,2]
[333219819,1721951442292,-500.0,0.00013972,2]
[333219820,1721951442302,-500.0,0.00013972,2]
[333219821,1721951442312,-500.0,0.00013972,2]
[333219822,1721951442322,-810.66,0.00013972,2]
[333219823,1721951442332,-500.0,0.00013972,2]
[333219824,1721951442341,-500.0,0.00013972,2]
[333219825,1721951442351,-988.25,0.00013972,2]
[333219826,1721951442360,-500.0,0.00013972,2]
[333219827,1721951442370,-500.0,0.00013972,2]
[333219828,1721951442381,-500.0,0.00013972,2]
[333219829,1721951442391,-500.0,0.00013972,2]
[333219830,1721951442400,-500.0,0.00013972,2]
[333219831,1721951442412,-500.0,0.00013972,2]
[333219832,1721951442422,-500.0,0.00013972,2]
[333219833,1721951442431,-803.72,0.00013972,2]
[333219834,1721951442441,-500.0,0.00013972,2]
[333219836,1721951442450,-500.0,0.00013972,2]
[333219837,1721951442460,-500.0,0.00013972,2]
[333219839,1721951442470,-500.0,0.00013972,2]
[333219840,1721951442479,-570.88425661,0.00013972,2]
[333219841,1721951442488,-22.79670608,0.00013972,2]
[333219868,1721951443194,-151.0,0.00013952,2]
[333219870,1721951443204,-477.20329392,0.00013972,2]
[333219872,1721951443213,-617.81,0.00013972,2]
[333219874,1721951443223,-791.8,0.00013972,2]
[333219876,1721951443233,-678.26,0.00013972,2]
[333219878,1721951443242,-528.61808596,0.00013972,2]
[333219880,1721951443252,-518.81,0.00013972,2]
[333219882,1721951443261,-557.67213999,0.00013972,2]
[333219884,1721951443271,-500.0,0.00013972,2]
[333219886,1721951443280,-151.0,0.00013972,2]
[333219888,1721951443290,-1235.18,0.00013972,2]
[333219890,1721951443300,-815.11,0.00013972,2]
[333219892,1721951443309,-151.0,0.00013972,2]
[333219894,1721951443319,-500.0,0.00013972,2]
[333219896,1721951443329,-500.0,0.00013972,2]
[333219898,1721951443339,-500.0,0.00013972,2]
[333219900,1721951443348,-500.0,0.00013972,2]
[333219902,1721951443358,-575.74,0.00013972,2]
[333219904,1721951443368,-500.0,0.00013972,2]
[333219906,1721951443378,-500.0,0.00013972,2]
[333219908,1721951443387,-867.24,0.00013972,2]
[333219910,1721951443397,-500.0,0.00013972,2]
[333219912,1721951443406,-500.0,0.00013972,2]
[333219914,1721951443415,-587.69629298,0.00013972,2]
[333219916,1721951443425,-500.0,0.00013972,2]
[333219918,1721951443435,-500.0,0.00013972,2]
[333219921,1721951443445,-567.23,0.00013972,2]
[333219923,1721951443455,-500.0,0.00013972,2]
[333219925,1721951443464,-500.0,0.00013972,2]
[333219927,1721951443473,-469.52063947,0.00013972,2]
[333219929,1721951443483,-500.0,0.00013972,2]
[333219931,1721951443493,-641.11,0.00013972,2]
[333219933,1721951443502,-500.0,0.00013972,2]
[333219935,1721951443511,-1005.92,0.00013972,2]
[333219937,1721951443521,-500.0,0.00013972,2]
[333219939,1721951443530,-500.0,0.00013972,2]
[333219941,1721951443539,-833.23,0.00013972,2]
[333219943,1721951443549,-500.0,0.00013972,2]
[333219945,1721951443558,-500.0,0.00013972,2]
[333219947,1721951443568,-500.0,0.00013972,2]
[333219949,1721951443577,-1735.66,0.00013972,2]
[333219951,1721951443587,-500.0,0.00013972,2]
[333219953,1721951443596,-500.0,0.00013972,2]
[333219955,1721951443606,-500.0,0.00013972,2]
[333219956,1721951443615,-500.0,0.00013972,2]
[333219958,1721951443624,-150.4388949,0.00013972,2]
[333219961,1721951443634,-513.67,0.00013972,2]
[333219963,1721951443644,-522.63,0.00013972,2]
[333219965,1721951443654,-1144.41,0.00013972,2]
[333219967,1721951443664,-500.0,0.00013972,2]
[333219969,1721951443674,-502.05,0.00013972,2]
[333219971,1721951443683,-167.17585007,0.00013972,2]
[333219973,1721951443693,-739.94,0.00013972,2]
[333219975,1721951443702,-500.0,0.00013972,2]
[333219977,1721951443712,-844.57,0.00013972,2]
[333219979,1721951443721,-503.56,0.00013972,2]
[333219981,1721951443732,-500.0,0.00013972,2]
[333219983,1721951443742,-500.0,0.00013972,2]
[333219985,1721951443752,-500.0,0.00013972,2]
[333219987,1721951443762,-500.0,0.00013972,2]
[333219989,1721951443772,-500.0,0.00013972,2]
[333219991,1721951443782,-500.0,0.00013972,2]
[333219994,1721951443792,-151.0,0.00013972,2]
[333219996,1721951443801,-1024.46,0.00013972,2]
[333219998,1721951443811,-765.22,0.00013972,2]
[333220000,1721951443821,-500.0,0.00013972,2]
[333220002,1721951443831,-500.0,0.00013972,2]
[333220004,1721951443841,-500.0,0.00013972,2]
[333220006,1721951443851,-730.91,0.00013972,2]
[333220008,1721951443861,-500.0,0.00013972,2]
[333220010,1721951443871,-1043.44,0.00013972,2]
[333220012,1721951443884,-506.1306222,0.00013972,2]
[333220014,1721951443894,-500.0,0.00013972,2]
[333220016,1721951443904,-779.25,0.00013972,2]
[333220018,1721951443914,-500.0,0.00013972,2]
[333220020,1721951443923,-500.0,0.00013972,2]
[333220022,1721951443932,-500.0,0.00013972,2]
[333220024,1721951443942,-949.89,0.00013972,2]
[333220026,1721951443952,-500.0,0.00013972,2]
[333220028,1721951443962,-500.0,0.00013972,2]
[333220030,1721951443972,-980.8,0.00013972,2]
[333220032,1721951443981,-856.66,0.00013972,2]
[333220034,1721951443990,-3348.86,0.00013972,2]